[Event "Budapest IM-B ONE WEEK Feb 2024"]
[Site "Budapest"]
[Date "2024.02.27"]
[Round "2.1"]
[White "Skytte, Rasmus"]
[Black "Poysti, Nathanael"]
[Result "1/2-1/2"]
[ECO "D50"]
[WhiteElo "2342"]
[BlackElo "2163"]
[Annotator "TA"]
[PlyCount "120"]
[EventDate "2024.02.25"]
[EventType "tourn"]
[EventCountry "HUN"]
[SourceTitle "playchess.com"]
[Source "ChessBase"]
[SourceQuality "1"]
[TimeControl "5400+30"]

{[%evp 9,120,8,10,26,20,29,17,18,25,22,30,12,23,30,22,9,73,22,31,24,39,41,66,66,66,70,83,70,79,82,86,77,95,91,114,74,103,90,86,90,88,88,88,77,117,101,100,101,101,102,103,88,88,88,88,88,97,72,104,69,69,69,69,59,145,146,127,126,666,662,6078,6028,6107,0,232,0,6123,6122,4691,4132,4132,137,6103,0,1455,0,144,132,135,134,139,0,122,20,20,27,33,0,0,0,0,0,0,0,0,0,0,0,0,0,0,0,0]} 1. d4 {[%emt 0:00:08]} Nf6 {[%emt 0:00:14]} 2. c4 {[%emt 0:00:10]} e6 {[%emt 0:00:05]} 3. Nc3 {[%emt 0:00:08]} d5 {[%emt 0:00:05]} 4. Bg5 {[%emt 0:00:07]} dxc4 {[%emt 0:00:30]} 5. e3 {[%emt 0:00:19]} c5 {[%emt 0:00:16]} 6. Bxf6 {[%emt 0:06:08]} Qxf6 {[%emt 0:06:54]} 7. d5 {[%emt 0:00:12]} a6 {[%emt 0:00:51]} 8. Nf3 {[%emt 0:00:30]} exd5 {[%emt 0:10:58]} 9. Nxd5 {[%emt 0:05:50]} Qd8 {[%emt 0:00:01]} 10. a4 {[%emt 0:03:41]} Be6 {[%emt 0:06:24]} 11. Bxc4 {[%emt 0:02:30]} Nc6 {[%emt 0:00:59]} 12. O-O {[%emt 0:04:55][%cal Of3g5]} g6 {[%emt 0:01:09] [#]} (12... Nb4 $11 {remains equal.} 13. e4 Be7) 13. Qe2 {[%emt 0:13:21]} Bg7 {[%emt 0:02:27]} 14. Nf4 {[%emt 0:05:01] A dynamic duo of knights.} Bxc4 {[%emt 0:07:59]} 15. Qxc4 {[%emt 0:00:10][%cal Of1d1] Hoping for Rfd1!} O-O {[%emt 0:04:43]} 16. Qxc5 {[%emt 0:04:00]} Qa5 {[%emt 0:07:16]} 17. Qa3 {[%emt 0:05:04] White is more active.} Rac8 {[%emt 0:11:49]} 18. Rad1 {[%emt 0:02:17]} b5 {[%emt 0:01:54]} 19. axb5 {[%emt 0:02:07]} Qxb5 {[%emt 0:01:46] [#]} 20. b3 $1 {[%emt 0:01:23]} Rb8 {[%emt 0:02:37]} 21. h4 {[%emt 0:06:45]} a5 {[%emt 0:00:51]} 22. Rc1 {[%emt 0:04:57]} Rfc8 {[%emt 0:01:01]} 23. Rc4 {[%emt 0:04:29]} Ne5 {[%emt 0:05:21]} 24. Rxc8+ {[%emt 0:02:17]} Rxc8 {[%emt 0:00:02]} 25. Nd4 {[%emt 0:01:03]} Qc5 {[%emt 0:05:06]} 26. Qa4 {[%emt 0:02:25]} Nc6 {[%emt 0:01:26]} 27. Nxc6 {[%emt 0:01:16]} Rxc6 {[%emt 0:00:03]} 28. Rd1 {[%emt 0:01:11]} Rd6 {[%emt 0:06:37] Prevents Rd5} 29. Rxd6 {[%emt 0:02:24]} Qxd6 {[%emt 0:00:01]} 30. Qxa5 $16 {[%emt 0:04:08][%mdl 4096] Endgame. Threatens to win with Nd5. KQB-KQN} Qd1+ {[%emt 0:00:02]} 31. Kh2 {[%emt 0:00:06]} Qxb3 {[%emt 0:00:03]} 32. Qd8+ {[%emt 0:00:59]} Bf8 {[%emt 0:00:02]} 33. Nd5 {[%emt 0:02:50]} Qa3 {[%emt 0:00:19]} 34. Nf6+ {[%emt 0:01:43]} Kg7 {[%emt 0:01:36] And now ...Qd6+ would win.} 35. Ne8+ {[%emt 0:00:40]} Kg8 {[%emt 0:00:41]} 36. Qd4 {[%emt 0:01:25]} Qa2 {[%emt 0:04:47]} (36... Qc5 $14) 37. Nf6+ {[%emt 0:03:10]} Kg7 {[%emt 0:00:54]} 38. h5 {[%emt 0:01:55][%cal Bh4h5,Bh5h6][%mdl 32] White threatens h6+! and mate.} Qe6 $2 {[%emt 0:02:18][%mdl 8192] [#]} (38... Qa3 $16) 39. h6+ $1 $18 {[%emt 0:01:33][%mdl 512]} Kh8 {[%emt 0:01:07]} (39... Kxh6 40. Ng8+) 40. Nd7+ {[%emt 0:01:23]} ({Don't blunder} 40. Qf4 $2 Bd6 $19) 40... Kg8 {[%emt 0:00:01]} 41. Nf6+ $2 {[%emt 0:00:15]} (41. Nxf8 Kxf8 42. Qd8+ Qe8 43. Qxe8+ Kxe8 44. Kg3) 41... Kh8 {[%emt 0:00:03]} 42. Nd7+ $2 {[%emt 0:00:02]} ({Avoid the trap} 42. Qf4 $2 Bd6 43. Nxh7 Bxf4+ $19 (43... Kxh7 $2 44. Kg3 $19)) (42. g4) 42... Kg8 {[%emt 0:00:09]} 43. Nxf8 {[%emt 0:00:04]} Kxf8 {[%emt 0:00:10] KQ-KQ} 44. Qd8+ {[%emt 0:02:19]} Qe8 {[%emt 0:00:02]} 45. Qf6 $2 {[%emt 0:01:04]} (45. Qxe8+ $18 Kxe8 46. Kg3) 45... Qe6 $2 {[%emt 0:02:04][%mdl 8192]} (45... Qe4 $16 46. Qd8+ (46. Qh8+ Ke7 $14) 46... Qe8 47. Qxe8+ Kxe8) 46. Qd8+ {[%emt 0:02:10]} (46. Qxe6 $142 fxe6 47. Kg3) 46... Qe8 {[%emt 0:00:01]} 47. Qd4 {[%emt 0:00:17]} (47. Qd6+ $18 {is more deadly.} Qe7 48. Qf4) 47... Qe6 $1 $16 {[%emt 0:00:37]} 48. g3 {[%emt 0:00:18]} Ke7 {[%emt 0:00:33] Inhibits Qd8+.} 49. Qb4+ {[%emt 0:00:38]} Kf6 {[%emt 0:00:31]} 50. Qd4+ {[%emt 0:00:54]} Ke7 $1 {[%emt 0:00:05]} 51. Kg1 {[%emt 0:00:20]} (51. Qh4+ $16 Kd7 52. Qf4) 51... g5 $1 $11 {[%emt 0:02:17]} 52. Qc5+ {[%emt 0:00:29]} Kf6 {[%emt 0:00:10]} 53. f4 {[%emt 0:02:02]} gxf4 {[%emt 0:06:29] The position is equal.} 54. exf4 {[%emt 0:00:06][%csl Gf4][%cal Rc5g5]} Qe1+ {[%emt 0:00:10]} 55. Kg2 {[%emt 0:00:11]} Qe2+ {[%emt 0:00:06]} 56. Kh1 {[%emt 0:00:41]} Qe1+ {[%emt 0:00:14]} 57. Kh2 {[%emt 0:00:06]} Qe2+ {[%emt 0:00:05]} 58. Kh3 {[%emt 0:00:13]} Qf1+ {[%emt 0:00:01]} 59. Kh4 {[%emt 0:01:14] White wants to mate with Qe5+.} Qh1+ {[%emt 0:00:02]} 60. Kg4 {[%emt 0:00:05][%cal Rc5d6]} Qd1+ {[%emt 0:00:03] Blacks defense is rewarded with a draw.   Weighted Error Value: White=0.58/Black=0.20 (precise) .  Loses game:     	---       	Black=2      Mistake:       	White=2     	Black=2      Inaccurate:     	White=3     	Black=4      OK:         	White=15    	Black=15     Best:        	White=2     	Black=5      Strong:       	White=1     	Black=3      Brilliant:      	White=1     	---} 1/2-1/2

[Event "Budapest IM-B ONE WEEK Feb 2024"]
[Site "Budapest"]
[Date "2024.02.27"]
[Round "2.2"]
[White "Nemeth, Zoltan"]
[Black "Krizsany, Laszlo"]
[Result "1/2-1/2"]
[ECO "D35"]
[WhiteElo "2194"]
[BlackElo "2346"]
[Annotator "RC"]
[PlyCount "25"]
[EventDate "2024.02.25"]
[EventType "tourn"]
[EventCountry "HUN"]
[SourceTitle "playchess.com"]
[Source "ChessBase"]
[SourceQuality "1"]
[TimeControl "5400+30"]

1. c4 Nf6 2. Nc3 e6 3. d4 d5 4. cxd5 exd5 5. Bg5 Be7 6. e3 c6 7. Nf3 O-O 8. Bd3 h6 9. Bh4 Nbd7 10. O-O Re8 11. Qc2 Nf8 12. Rac1 Bg4 13. Ne5 1/2-1/2

[Event "Budapest IM-B ONE WEEK Feb 2024"]
[Site "Budapest"]
[Date "2024.02.27"]
[Round "2.3"]
[White "Matyassy, Lazar"]
[Black "Velikic, Adela"]
[Result "0-1"]
[ECO "B33"]
[WhiteElo "2176"]
[BlackElo "2266"]
[Annotator "RC"]
[PlyCount "134"]
[EventDate "2024.02.25"]
[EventType "tourn"]
[EventCountry "HUN"]
[SourceTitle "playchess.com"]
[Source "ChessBase"]
[SourceQuality "1"]
[TimeControl "5400+30"]

1. e4 {[%emt 0:00:06]} c5 {[%emt 0:00:06]} 2. Nc3 {[%emt 0:00:11]} Nc6 {[%emt 0:00:12]} 3. Nge2 {[%emt 0:00:07]} Nf6 {[%emt 0:00:19]} 4. d4 {[%emt 0:00:52]} cxd4 {[%emt 0:00:07]} 5. Nxd4 {[%emt 0:00:10]} e5 {[%emt 0:00:06]} 6. Ndb5 {[%emt 0:00:29]} d6 {[%emt 0:00:10]} 7. Bg5 {[%emt 0:01:28]} a6 {[%emt 0:00:10]} 8. Na3 {[%emt 0:00:10]} b5 {[%emt 0:00:08]} 9. Nd5 {[%emt 0:02:16]} Be7 {[%emt 0:00:09]} 10. Bxf6 {[%emt 0:00:06]} Bxf6 {[%emt 0:00:05]} 11. c3 {[%emt 0:00:13]} Bg5 {[%emt 0:00:16]} 12. Nc2 {[%emt 0:00:16]} Rb8 {[%emt 0:00:12]} 13. g3 {[%emt 0:02:20]} O-O {[%emt 0:00:36]} 14. h4 {[%emt 0:00:54]} Bh6 {[%emt 0:00:07]} 15. Bg2 {[%emt 0:00:15]} a5 {[%emt 0:02:58]} 16. O-O {[%emt 0:09:26]} b4 {[%emt 0:16:21]} 17. Qe2 {[%emt 0:04:29]} bxc3 {[%emt 0:11:30]} 18. bxc3 {[%emt 0:01:03]} Ne7 {[%emt 0:03:16]} 19. Nce3 {[%emt 0:08:09]} Bxe3 {[%emt 0:02:08]} 20. Nxe3 {[%emt 0:04:07]} Qc7 {[%emt 0:03:49]} 21. Qd2 {[%emt 0:00:44]} Be6 {[%emt 0:04:27]} 22. Rad1 {[%emt 0:03:38]} Rfd8 {[%emt 0:04:04]} 23. f4 {[%emt 0:08:41]} exf4 {[%emt 0:24:53]} 24. gxf4 {[%emt 0:01:41]} f6 {[%emt 0:03:06]} 25. Kh1 {[%emt 0:18:41]} Rb5 {[%emt 0:06:17]} 26. e5 {[%emt 0:15:50]} Qb6 {[%emt 0:09:06]} 27. exd6 {[%emt 0:04:35]} Nc8 {[%emt 0:02:12]} 28. Qd4 {[%emt 0:07:09]} Qxd4 {[%emt 0:04:25]} 29. Rxd4 {[%emt 0:00:07]} Rxd6 {[%emt 0:01:11]} 30. Rfd1 {[%emt 0:01:47]} Rxd4 {[%emt 0:00:43]} 31. Rxd4 {[%emt 0:00:07]} Kf7 {[%emt 0:01:43]} 32. c4 {[%emt 0:03:51]} Rb1+ {[%emt 0:00:20]} 33. Kh2 {[%emt 0:00:06]} Re1 {[%emt 0:00:40]} 34. Rd3 {[%emt 0:01:07]} Ne7 {[%emt 0:00:55]} 35. Kg3 {[%emt 0:01:31]} Rxe3+ {[%emt 0:00:34]} 36. Rxe3 {[%emt 0:00:11]} Nf5+ {[%emt 0:00:01]} 37. Kf2 {[%emt 0:00:07]} Nxe3 {[%emt 0:00:04]} 38. Kxe3 {[%emt 0:00:05]} Bxc4 {[%emt 0:00:04]} 39. a3 {[%emt 0:00:14]} Ke6 {[%emt 0:00:29]} 40. Kd4 {[%emt 0:00:24]} Bb3 {[%emt 0:00:18]} 41. Be4 {[%emt 0:01:03]} g6 {[%emt 0:02:07]} 42. Kc5 {[%emt 0:00:58]} Bd1 {[%emt 0:00:32]} 43. Bd3 {[%emt 0:01:33]} a4 {[%emt 0:00:25]} 44. Kd4 {[%emt 0:00:41]} Kf7 {[%emt 0:00:33]} 45. Kd5 {[%emt 0:00:29]} Bb3+ {[%emt 0:00:17]} 46. Kd6 {[%emt 0:00:07]} h6 {[%emt 0:00:16]} 47. Be4 {[%emt 0:00:46]} Bd1 {[%emt 0:00:33]} 48. Bd5+ {[%emt 0:00:34]} Kg7 {[%emt 0:00:07]} 49. Bc4 {[%emt 0:00:23]} Bc2 {[%emt 0:00:52]} 50. Bd5 {[%emt 0:00:37]} h5 {[%emt 0:00:54]} 51. Ke7 {[%emt 0:00:34]} g5 {[%emt 0:00:34]} 52. fxg5 {[%emt 0:00:30]} fxg5 {[%emt 0:00:01]} 53. hxg5 {[%emt 0:00:16]} h4 {[%emt 0:00:29]} 54. Bg2 {[%emt 0:00:40]} Kg6 {[%emt 0:00:20]} 55. Ke6 {[%emt 0:00:30]} Kxg5 {[%emt 0:00:14]} 56. Ke5 {[%emt 0:00:08]} Kg4 {[%emt 0:00:38]} 57. Kf6 {[%emt 0:00:18]} Bd3 {[%emt 0:00:51]} 58. Bc6 {[%emt 0:00:20]} Bc2 {[%emt 0:00:33]} 59. Bd7+ {[%emt 0:00:17]} Kf4 {[%emt 0:00:35]} 60. Bc8 {[%emt 0:00:15]} Bd1 {[%emt 0:00:16]} 61. Bh3 {[%emt 0:00:33]} Kg3 {[%emt 0:00:50]} 62. Bf1 {[%emt 0:00:04]} Kf4 {[%emt 0:00:39]} 63. Kg6 {[%emt 0:01:08]} Bf3 {[%emt 0:00:29]} 64. Kf6 {[%emt 0:00:12]} Bc6 {[%emt 0:00:26]} 65. Kg6 {[%emt 0:00:13]} Bd7 {[%emt 0:00:28]} 66. Kh5 {[%emt 0:01:08]} Kg3 {[%emt 0:00:40]} 67. Kg5 {[%emt 0:00:21]} h3 {[%emt 0:00:17]} 0-1

[Event "Budapest IM-B ONE WEEK Feb 2024"]
[Site "Budapest"]
[Date "2024.02.27"]
[Round "2.4"]
[White "Haszon, David"]
[Black "Mouhamad, Joachim"]
[Result "0-1"]
[ECO "D37"]
[WhiteElo "2245"]
[BlackElo "2316"]
[Annotator "RC"]
[PlyCount "144"]
[EventDate "2024.02.25"]
[EventType "tourn"]
[EventCountry "HUN"]
[SourceTitle "playchess.com"]
[Source "ChessBase"]
[SourceQuality "1"]
[TimeControl "5400+30"]

1. d4 {[%emt 0:00:04]} d5 {[%emt 0:00:20]} 2. Nf3 {[%emt 0:00:50]} e6 {[%emt 0:00:22]} 3. c4 {[%emt 0:00:53]} Nf6 {[%emt 0:02:18]} 4. Nc3 {[%emt 0:00:38]} a6 {[%emt 0:00:21]} 5. cxd5 {[%emt 0:01:10]} exd5 {[%emt 0:00:11]} 6. Bg5 {[%emt 0:01:21]} Be6 {[%emt 0:00:17]} 7. Qb3 {[%emt 0:03:46]} Ra7 {[%emt 0:01:23]} 8. e3 {[%emt 0:03:47]} c6 {[%emt 0:00:19]} 9. Bd3 {[%emt 0:02:18]} Nbd7 {[%emt 0:00:19]} 10. O-O {[%emt 0:04:00]} Bd6 {[%emt 0:00:20]} 11. Qc2 {[%emt 0:01:54]} h6 {[%emt 0:00:43]} 12. Bf4 {[%emt 0:01:22]} Qc7 {[%emt 0:01:20]} 13. Bf5 {[%emt 0:11:06]} Bxf4 {[%emt 0:11:11]} 14. Bxe6 {[%emt 0:02:01]} Bxh2+ {[%emt 0:06:23]} 15. Nxh2 {[%emt 0:00:31]} fxe6 {[%emt 0:00:07]} 16. Qg6+ {[%emt 0:00:38]} Kf8 {[%emt 0:00:02]} 17. e4 {[%emt 0:02:00]} Kg8 {[%emt 0:02:59]} 18. e5 {[%emt 0:04:17]} Nf8 {[%emt 0:00:08]} 19. Qg3 {[%emt 0:02:31]} Nh5 {[%emt 0:20:02]} 20. Qh4 {[%emt 0:05:10]} g6 {[%emt 0:02:14]} 21. Ne2 {[%emt 0:05:50]} Ra8 {[%emt 0:00:59]} 22. f4 {[%emt 0:06:43]} Qd8 {[%emt 0:07:07]} 23. Qh3 {[%emt 0:00:10]} Qd7 {[%emt 0:01:55]} 24. Ng4 {[%emt 0:01:47]} Qf7 {[%emt 0:03:13]} 25. Ng3 {[%emt 0:02:55]} Nxg3 {[%emt 0:04:44]} 26. Nf6+ {[%emt 0:02:15]} Kg7 {[%emt 0:07:11]} 27. Qxg3 {[%emt 0:01:25]} Nh7 {[%emt 0:00:03]} 28. f5 {[%emt 0:02:32]} Ng5 {[%emt 0:00:07]} 29. fxg6 {[%emt 0:10:33]} Qxg6 {[%emt 0:00:03]} 30. Nd7 {[%emt 0:02:00]} Rad8 {[%emt 0:11:18]} 31. Nc5 {[%emt 0:05:34]} Rdf8 {[%emt 0:01:39]} 32. Nd7 {[%emt 0:04:45]} Rf7 {[%emt 0:00:53]} 33. Rf6 {[%emt 0:01:41]} Qe4 {[%emt 0:04:34]} 34. Rxf7+ {[%emt 0:00:59]} Kxf7 {[%emt 0:00:02]} 35. Qf2+ {[%emt 0:00:49]} Qf5 {[%emt 0:08:05]} 36. Qe3 {[%emt 0:02:05]} Kg7 {[%emt 0:00:38]} 37. Rf1 {[%emt 0:02:25]} Qe4 {[%emt 0:00:02]} 38. Qf2 {[%emt 0:00:17]} Qg6 {[%emt 0:01:02]} 39. Qf6+ {[%emt 0:02:41]} Qxf6 {[%emt 0:00:53]} 40. exf6+ {[%emt 0:00:02]} Kg8 {[%emt 0:02:16]} 41. Nc5 {[%emt 0:02:36]} Rh7 {[%emt 0:01:47]} 42. f7+ {[%emt 0:00:12]} Rxf7 {[%emt 0:00:25]} 43. Rxf7 {[%emt 0:00:07]} Kxf7 {[%emt 0:00:40]} 44. Nxb7 {[%emt 0:00:04]} Ne4 {[%emt 0:01:00]} 45. Nd8+ {[%emt 0:00:09]} Ke7 {[%emt 0:00:33]} 46. Nxc6+ {[%emt 0:00:06]} Kd6 {[%emt 0:00:02]} 47. Ne5 {[%emt 0:00:24]} h5 {[%emt 0:00:30]} 48. Nd3 {[%emt 0:01:05]} Ng3 {[%emt 0:00:11]} 49. Nf4 {[%emt 0:01:28]} e5 {[%emt 0:01:00]} 50. dxe5+ {[%emt 0:00:22]} Kxe5 {[%emt 0:00:01]} 51. Nd3+ {[%emt 0:00:15]} Kd4 {[%emt 0:00:20]} 52. Nb4 {[%emt 0:00:15]} a5 {[%emt 0:00:46]} 53. Nc6+ {[%emt 0:00:13]} Ke3 {[%emt 0:00:02]} 54. Nxa5 {[%emt 0:00:38]} d4 {[%emt 0:00:01]} 55. Nc4+ {[%emt 0:00:12]} Ke2 {[%emt 0:00:37]} 56. a4 {[%emt 0:00:25]} Ne4 {[%emt 0:00:18]} 57. a5 {[%emt 0:00:28]} d3 {[%emt 0:01:22]} 58. b4 {[%emt 0:01:03]} Nd6 {[%emt 0:00:22]} 59. Nb2 {[%emt 0:00:16]} d2 {[%emt 0:00:06]} 60. a6 {[%emt 0:01:18]} Nc4 {[%emt 0:00:02]} 61. a7 {[%emt 0:00:14]} Nxb2 {[%emt 0:00:05]} 62. a8=Q {[%emt 0:00:07]} d1=Q+ {[%emt 0:00:07]} 63. Kh2 {[%emt 0:00:07]} Qd6+ {[%emt 0:00:17]} 64. g3 {[%emt 0:00:39]} Nd3 {[%emt 0:02:54]} 65. Qe8+ {[%emt 0:00:41]} Ne5 {[%emt 0:00:43]} 66. Qxh5+ {[%emt 0:00:23]} Kf2 {[%emt 0:00:09]} 67. Kh3 {[%emt 0:01:23]} Qd7+ {[%emt 0:00:58]} 68. g4 {[%emt 0:00:35]} Qd3+ {[%emt 0:00:10]} 69. Kh4 {[%emt 0:00:15]} Qd8+ {[%emt 0:00:48]} 70. g5 {[%emt 0:00:32]} Qd4+ {[%emt 0:00:08]} 71. Kh3 {[%emt 0:00:07]} Qd7+ {[%emt 0:00:41]} 72. Kh2 {[%emt 0:00:25]} Nf3+ {[%emt 0:00:06]} 0-1

[Event "Budapest IM-B ONE WEEK Feb 2024"]
[Site "Budapest"]
[Date "2024.02.27"]
[Round "2.5"]
[White "Polyik, Peter"]
[Black "Golis, Wiktor"]
[Result "1-0"]
[ECO "A13"]
[WhiteElo "2289"]
[BlackElo "2123"]
[Annotator "TA"]
[PlyCount "69"]
[EventDate "2024.02.25"]
[EventType "tourn"]
[EventCountry "HUN"]
[SourceTitle "playchess.com"]
[Source "ChessBase"]
[SourceQuality "1"]
[TimeControl "5400+30"]

{[%evp 14,69,29,21,20,22,110,87,174,172,166,158,262,277,278,287,231,134,139,123,131,125,130,119,187,180,197,193,395,367,359,368,375,364,551,413,406,394,397,325,322,318,525,556,702,682,655,405,1041,987,1039,1018,1023,1057,985,967,957,934]} 1. c4 {[%emt 0:00:06]} e6 {[%emt 0:00:51]} 2. g3 {[%emt 0:00:07]} Nf6 {[%emt 0:00:15]} 3. Bg2 {[%emt 0:00:06]} d5 {[%emt 0:00:24]} 4. Nf3 {[%emt 0:00:12]} dxc4 {[%emt 0:01:28]} 5. Qa4+ {[%emt 0:00:13]} Nbd7 {[%emt 0:06:23]} 6. Qxc4 {[%emt 0:00:09]} a6 {[%emt 0:01:20]} 7. Qc2 {[%emt 0:00:47]} c5 {[%emt 0:01:39]} 8. Nc3 {[%emt 0:00:53]} Rb8 {[%emt 0:04:29]} 9. d4 {[%emt 0:25:59]} Bd6 {[%emt 0:21:35]} (9... b5 $11 {keeps the balance.}) 10. dxc5 $16 {[%emt 0:10:24] White is more active.} Nxc5 {[%emt 0:01:26] [#]} (10... Bxc5 $16 11. Bf4 Ra8) 11. O-O $1 $18 {[%emt 0:00:15] Hoping for Rd1.} Qc7 {[%emt 0:10:48] [#]} 12. Rd1 $1 {[%emt 0:08:24][%cal Od1d6]} b5 {[%emt 0:03:30] [#]} (12... Ncd7 $16 13. Qd3 Be7) 13. Rxd6 $1 {[%emt 0:09:22][%mdl 512]} Qxd6 {[%emt 0:00:28]} 14. Bf4 {[%emt 0:00:05]} Qb6 {[%emt 0:00:07][%cal Oe8g8]} 15. Bxb8 {[%emt 0:01:36]} (15. Be3 $18 {aiming for b4.} a5 16. Ng5) 15... Qxb8 $16 {[%emt 0:00:08]} 16. Rc1 {[%emt 0:00:14]} O-O {[%emt 0:05:35] [#]} 17. Nxb5 $1 {[%emt 0:02:02][%mdl 512]} Nce4 {[%emt 0:06:00]} (17... Ncd7 18. Nbd4) 18. Nc3 {[%emt 0:14:23][%cal Bb5c3,Bc3e4,Be4c5][%mdl 32]} Nxf2 {[%emt 0:22:07]} 19. Kxf2 $18 {[%emt 0:01:32][%cal Bg1f2,Bf2e1,Be1f1][%mdl 32] Kg1 is the strong threat.} Ng4+ {[%emt 0:00:18]} 20. Ke1 {[%emt 0:00:06] And now Nd1 would win.} Qb6 $2 {[%emt 0:06:12]} (20... Ne3 21. Qd2 Ng4 22. Nd1 $18) (20... Nxh2 21. Ne4 (21. Nxh2 Qxg3+ 22. Kf1 Qxh2 $18) 21... Bb7) 21. Ne4 {[%emt 0:01:58] Threatens to win with Qxc8.} Bb7 {[%emt 0:03:19]} 22. Nc5 {[%emt 0:00:33]} Bd5 {[%emt 0:00:58]} (22... Ne3 23. Qb3 Qa5+ 24. Qc3 (24. Kf2 Ng4+ 25. Kg1 Bd5 $18) 24... Nxg2+ 25. Kf2) 23. Qc3 {[%emt 0:00:38]} e5 {[%emt 0:00:39]} (23... Rc8 {keeps fighting.} 24. Kf1 Bxa2) 24. h3 {[%emt 0:00:16][%cal Bh2h3,Bh3h4,Bh4g5][%mdl 32]} Nf6 {[%emt 0:00:16]} 25. Kf1 {[%emt 0:04:42]} ({Don't take} 25. Qxe5 Re8 26. Qd4 Bxa2 $18) 25... e4 {[%emt 0:00:51]} 26. Ng5 {[%emt 0:01:30]} Rc8 {[%emt 0:01:11]} 27. h4 {[%emt 0:01:15]} (27. Ngxe4 Bxe4 28. Qd4 Re8 $11) 27... Ng4 $2 {[%emt 0:01:00]} (27... Qb8 {was called for.} 28. Qd2 (28. Bxe4 Bxe4 29. Qb3 Qa7 $11) 28... Re8) 28. Bxe4 {[%emt 0:01:30]} h6 {[%emt 0:00:40]} 29. Bxd5 {[%emt 0:04:07][%cal Be4d5,Bd5f3,Bf3g4][%mdl 32]} hxg5 {[%emt 0:00:02]} 30. Bf3 {[%emt 0:02:52]} Nh6 {[%emt 0:00:28]} (30... Nh2+ $142 31. Kf2 gxh4 32. gxh4 Nxf3) 31. hxg5 {[%emt 0:00:56] White is clearly winning.} Nf5 {[%emt 0:00:13]} 32. Bg4 {[%emt 0:00:11]} Qg6 {[%emt 0:01:07]} 33. e4 {[%emt 0:02:07]} Nxg3+ {[%emt 0:00:36]} 34. Qxg3 {[%emt 0:00:21]} Qxg5 {[%emt 0:00:05]} 35. Rc3 {[%emt 0:01:08] Weighted Error Value: White=0.36/Black=0.58.  Mistake:       	White=1     	Black=7      OK:         	White=9     	Black=8      Best:        	White=2     	Black=2      Strong:       	White=2     	---        Brilliant:      	White=1     	---} 1-0

[Event "Budapest IM-B ONE WEEK Feb 2024"]
[Site "Budapest"]
[Date "2024.02.27"]
[Round "3"]
[White "Krizsany, Laszlo"]
[Black "Matyassy, Lazar"]
[Result "1-0"]
[ECO "D91"]
[WhiteElo "2346"]
[BlackElo "2176"]
[Annotator "TA"]
[PlyCount "89"]
[EventDate "2024.02.25"]
[EventType "tourn"]
[EventCountry "HUN"]
[SourceTitle "playchess.com"]
[Source "ChessBase"]
[SourceQuality "1"]
[TimeControl "5400+30"]

{[%evp 23,89,14,31,26,34,35,33,29,50,50,60,79,51,54,52,45,68,60,73,82,95,101,93,93,97,100,102,98,96,102,106,93,123,108,116,111,122,121,111,110,100,90,124,126,115,109,244,246,233,216,252,241,234,249,249,249,249,249,262,231,518,431,733,721,831,827,785,666]} 1. d4 {[%emt 0:00:07]} Nf6 {[%emt 0:00:05]} 2. c4 {[%emt 0:00:11]} g6 {[%emt 0:00:09]} 3. Nc3 {[%emt 0:00:10]} d5 {[%emt 0:00:06]} 4. Bg5 {[%emt 0:00:14]} Ne4 {[%emt 0:00:49]} 5. Bh4 {[%emt 0:00:08]} Nxc3 {[%emt 0:00:52]} 6. bxc3 {[%emt 0:00:04]} Bg7 {[%emt 0:01:57]} 7. e3 {[%emt 0:01:19]} c5 {[%emt 0:01:26]} 8. cxd5 {[%emt 0:00:43]} Qxd5 {[%emt 0:00:18]} 9. Nf3 {[%emt 0:00:24]} Nc6 {[%emt 0:01:16]} 10. Be2 {[%emt 0:00:20]} cxd4 {[%emt 0:01:16]} 11. cxd4 {[%emt 0:00:11]} O-O {[%emt 0:01:28]} 12. O-O {[%emt 0:00:20]} e5 {[%emt 0:12:21]} 13. dxe5 {[%emt 0:01:07]} Qxd1 {[%emt 0:00:28]} 14. Rfxd1 {[%emt 0:00:53]} Nxe5 {[%emt 0:00:10]} 15. Nd4 {[%emt 0:01:10] White is slightly better.} Bd7 {[%emt 0:01:12]} 16. Rab1 {[%emt 0:00:47]} Ba4 {[%emt 0:05:17]} 17. Rdc1 {[%emt 0:04:54]} b6 {[%emt 0:02:27]} 18. h3 {[%emt 0:29:27]} Rfc8 {[%emt 0:12:57]} 19. Ba6 {[%emt 0:02:24]} Rc5 {[%emt 0:00:18]} 20. Be7 $1 {[%emt 0:10:06]} Rxc1+ {[%emt 0:05:20]} 21. Rxc1 {[%emt 0:00:03]} Bf8 {[%emt 0:02:13]} 22. Rc7 {[%emt 0:02:47]} Bxe7 {[%emt 0:02:22]} 23. Rxe7 {[%emt 0:00:04]} Nc6 {[%emt 0:00:16]} 24. Nxc6 {[%emt 0:07:15]} Bxc6 $16 {[%emt 0:00:45][%mdl 4096] Endgame. KRB-KRB} 25. Bc4 {[%emt 0:01:47]} Be8 {[%emt 0:00:39]} 26. Rb7 $1 {[%emt 0:01:12] White has more active pieces.} Rc8 {[%emt 0:05:43]} 27. Bb3 {[%emt 0:03:41]} Ra8 {[%emt 0:02:49]} 28. Bd5 {[%emt 0:08:45]} Rd8 {[%emt 0:01:21]} 29. e4 {[%emt 0:00:21]} Rd7 {[%emt 0:00:36]} 30. Rb8 {[%emt 0:00:13]} Re7 {[%emt 0:00:06]} 31. Bc6 $1 {[%emt 0:01:42]} Kf8 {[%emt 0:01:57]} 32. f3 $1 {[%emt 0:00:24]} Re6 {[%emt 0:07:20]} 33. Bb5 {[%emt 0:02:46]} Re5 {[%emt 0:00:26]} 34. a4 {[%emt 0:00:34]} g5 {[%emt 0:04:25] Black cannot hold the game after this.} (34... f5 $16) 35. Kf2 $18 {[%emt 0:03:26]} f6 {[%emt 0:00:23] [#]} 36. Ra8 $1 {[%emt 0:00:45]} Kf7 {[%emt 0:01:40]} 37. Rxa7+ {[%emt 0:00:10]} Kg6 {[%emt 0:00:07]} 38. Bxe8+ {[%emt 0:02:52]} Rxe8 {[%emt 0:00:15] [#] KR-KR} 39. Ra6 $1 {[%emt 0:01:24]} Rb8 {[%emt 0:00:07]} 40. Ke3 {[%emt 0:00:17]} Kg7 {[%emt 0:00:35]} 41. Kd3 {[%emt 0:02:27] Black must now prevent Kc4.} Rd8+ $2 {[%emt 0:03:34]} (41... h5 42. Kc4 g4 43. hxg4 (43. fxg4 hxg4 44. hxg4 Kf7 $18) 43... hxg4 44. fxg4 Kg6) 42. Kc3 {[%emt 0:00:21] White is clearly winning.} Rd1 {[%emt 0:00:37]} (42... Rc8+ $142 43. Kd3 Rb8) 43. Rxb6 {[%emt 0:01:02]} Rc1+ {[%emt 0:00:08]} 44. Kb4 {[%emt 0:03:31]} Rc2 {[%emt 0:00:17]} 45. g4 {[%emt 0:01:42] Weighted Error Value: White=0.04 (flawless) /Black=0.25 (precise) .  Mistake:       	---       	Black=3      Inaccurate:     	---       	Black=2      OK:         	White=15    	Black=11     Best:        	White=2     	Black=2      Strong:       	White=5     	---} 1-0